fUST/lending_fUST_20240116
["ID","MTS","AMOUNT","RATE_DAILY","PERIOD"]
[311785257,1705389041500,-339.97848105,0.0003,2]
[311785474,1705389043569,-500.0,0.0002792,2]
[311785476,1705389043579,-500.0,0.00028194,2]
[311785477,1705389043589,-500.0,0.00028468,2]
[311785478,1705389043599,-249.13022421,0.00028742,2]
[311785479,1705389043611,-169.27764469,0.00028951,2]
[311785480,1705389043621,-2098.62617333,0.0003,2]
[311788007,1705390231666,-486.03262571,0.00026133,2]
[311788033,1705390237765,-35.06115151,0.00026133,2]
[311788035,1705390237774,-2305.76723393,0.00026134,2]
[311788489,1705390242701,-1156.75720843,0.00026134,2]
[311790312,1705390271369,1466.31228556,0.000196,2]
[311790386,1705391072847,2791.74,0.000251,10]
[311790627,1705391440828,-326.89988944,0.00024034,2]
[311790629,1705391440837,-163.25114606,0.00024441,2]
[311790763,1705391442944,-3.41551994,0.00024441,2]
[311790764,1705391442954,-174.428816,0.00024716,2]
[311790765,1705391442964,-173.477981,0.00024854,2]
[311790766,1705391442974,-697.8261007,0.00025126,2]
[311790767,1705391442983,-772.10854206,0.00025868,2]
[311790768,1705391442993,-169.27764469,0.00026035,2]
[311790769,1705391443003,-1048.23434748,0.00026105,2]
[311790770,1705391443013,-154.12,0.00026123,3]
[311790771,1705391443022,-259.80238302,0.00026123,3]
[311790962,1705392073700,155.0,0.00020717,4]
[311790963,1705392075131,976.30954437,0.00020717,2]
[311790992,1705392632100,-267.31248828,0.00021548,2]
[311790993,1705392632109,-175.379653,0.00021549,2]
[311790994,1705392632118,-2711.18525978,0.00021917,2]
[311790995,1705392632127,-166.805224,0.00021918,2]
[311790996,1705392632136,-166.805224,0.00022773,2]
[311790997,1705392632144,-19846.52895814,0.00022812,2]
[311790999,1705392632153,-3481.93045804,0.00022812,2]
[311791001,1705392632162,-298.50922313,0.00022813,2]
[311791002,1705392632171,-155.28637108,0.00022813,2]
[311791003,1705392632180,-861.45126448,0.00022813,2]
[311791004,1705392632189,-251.81591471,0.00022813,2]
[311791005,1705392632198,-469.79986126,0.00022818,2]
[311791006,1705392632206,-3010.12944344,0.00022822,2]
[311791007,1705392632215,-18877.03741997,0.00022824,2]
[311791008,1705392632224,-329.44588469,0.00022921,2]
[311791009,1705392632233,-4195.97,0.00023009,3]
[311791010,1705392632242,-329.183235,0.00023017,2]
[311791011,1705392632251,-154.98450155,0.00023017,2]
[311791012,1705392632262,-154.98450155,0.00023017,2]
[311791013,1705392632272,-560.92808973,0.00023017,2]
[311791014,1705392632281,-875.01165605,0.00023017,2]
[311791015,1705392632290,-1246.00170131,0.00023017,2]
[311791016,1705392632299,-286.00588053,0.00023017,2]
[311791017,1705392632309,-245.90750508,0.00023017,2]
[311791018,1705392632318,-198.98525444,0.00023018,2]
[311791019,1705392632328,-1328.49303714,0.00023018,2]
[311791020,1705392632342,-815.94988363,0.00023018,2]
[311791021,1705392632357,-2019.75026668,0.00023018,2]
[311791073,1705392638241,-735.78249805,0.00023018,2]
[311791075,1705392638250,-521.09377722,0.00023019,2]
[311791078,1705392638261,-902.37527688,0.00023019,2]
[311791081,1705392638272,-594.38972109,0.00023019,2]
[311791084,1705392638281,-1998.9172068,0.00023019,2]
[311791086,1705392638290,-1577.23828043,0.00023019,2]
[311791088,1705392638299,-191.16884209,0.00023019,2]
[311791089,1705392638309,-155.42105782,0.00023019,2]
[311791091,1705392638318,-213.13739698,0.00023019,2]
[311791093,1705392638327,-19672.51156169,0.00023019,2]
[311791095,1705392638336,-50000.0,0.00023021,2]
[311791097,1705392638345,-50000.0,0.00023021,2]
[311791099,1705392638354,-151.0,0.00023021,2]
[311791101,1705392638364,-1042.688088,0.00023021,2]
[311791103,1705392638375,-1042.688088,0.00023021,2]
[311791106,1705392638386,-155.0,0.000235,2]
[311791108,1705392638396,-166.805224,0.00023627,2]
[311791109,1705392638406,-4009.14861616,0.00024,2]
[311791111,1705392638415,-377.69077729,0.00024005,2]
[311791113,1705392638424,-166.805224,0.00024482,2]
[311791115,1705392638434,-304.3118027,0.00024658,2]
[311791117,1705392638443,-329.44588468,0.00024666,2]
[311791119,1705392638452,-174.6166086,0.00024857,2]
[311791121,1705392638461,-1045.05948708,0.00025,2]
[311791123,1705392638470,-687.93916872,0.00025,2]
[311791125,1705392638479,-4716.82638211,0.00025,2]
[311791127,1705392638487,-624.30166738,0.0002508,2]
[311791129,1705392638496,-200.0,0.00025095,7]
[311791131,1705392638505,-156.52857959,0.000251,2]
[311791133,1705392638514,-155.51533463,0.00026129,2]
[311791135,1705392638524,-1031.29658725,0.00026129,2]
[311791137,1705392638533,-177.82900735,0.00026129,2]
[311791139,1705392638542,-677.43954104,0.00026129,2]
[311791141,1705392638551,-273.18721547,0.00026129,2]
[311791143,1705392638560,-151.0,0.00026131,2]
[311791145,1705392638569,-151.368128,0.00026131,2]
[311791147,1705392638579,-1042.688088,0.00026131,2]
[311791149,1705392638588,-1042.688088,0.00026131,2]
[311791151,1705392638598,-2705.10797595,0.00026131,5]
[311791153,1705392638607,-615.97967559,0.00026131,2]
[311791155,1705392638617,-13700.42570199,0.00026131,2]
[311791157,1705392638627,-620.21508337,0.00026334,2]
[311791159,1705392638636,-329.44588468,0.00026411,2]
[311791161,1705392638645,-153.0,0.00026849,2]
[311791163,1705392638654,-157.7642133,0.00026849,2]
[311791165,1705392638663,-306.2703506,0.00026849,2]
[311791167,1705392638672,-306.2535945,0.00026849,2]
[311791169,1705392638681,-198.9082381,0.00026849,2]
[311791171,1705392638690,-198.9082381,0.00026849,2]
[311791173,1705392638699,-153.0,0.00026849,2]
[311791174,1705392638709,-153.0,0.00026849,2]
[311791176,1705392638719,-198.9082381,0.00026849,2]
[311791179,1705392638729,-198.9082381,0.00026849,2]
[311791180,1705392638738,-153.0,0.00026849,2]
[311791183,1705392638748,-153.0,0.00026849,2]
[311791184,1705392638758,-198.9082381,0.00026849,2]
[311791187,1705392638768,-198.9082381,0.00026849,2]
[311791188,1705392638778,-198.9082381,0.00026849,2]
[311791190,1705392638787,-198.9082381,0.00026849,2]
[311791193,1705392638797,-198.9082381,0.00026849,2]
[311791195,1705392638806,-198.9082381,0.00026849,2]
[311791196,1705392638815,-198.9082381,0.00026849,2]
[311791198,1705392638824,-198.9082381,0.00026849,2]
[311791201,1705392638833,-198.9082381,0.00026849,2]
[311791203,1705392638843,-198.9082381,0.00026849,2]
[311791204,1705392638851,-198.9082381,0.00026849,2]
[311791207,1705392638861,-198.9082381,0.00026849,2]
[311791208,1705392638870,-198.9082381,0.00026849,2]
[311791210,1705392638879,-198.9082381,0.00026849,2]
[311791212,1705392638888,-198.9082381,0.00026849,2]
[311791214,1705392638898,-198.9082381,0.00026849,2]
[311791216,1705392638907,-198.9082381,0.00026849,2]
[311791218,1705392638916,-198.9082381,0.00026849,2]
[311791220,1705392638925,-289.85545354,0.00027,2]
[311791222,1705392638935,-461.1686624,0.00027,2]
[311791224,1705392638944,-155.0,0.00027397,2]
[311791226,1705392638953,-500.0,0.00027397,2]
[311791228,1705392638962,-150.68547709,0.00027397,7]
[311791230,1705392638971,-500.0,0.00027534,2]
[311791232,1705392638980,-280.0,0.00027605,15]
[311791234,1705392638989,-620.01075417,0.00027651,2]
[311791236,1705392638999,-500.0,0.00027671,2]
[311791238,1705392639008,-198.9082381,0.00027671,2]
[311791240,1705392639017,-198.9082381,0.00027671,2]
[311791242,1705392639026,-198.9082381,0.00027671,2]
[311791244,1705392639035,-198.9082381,0.00027671,2]
[311791246,1705392639044,-198.9082381,0.00027671,2]
[311791248,1705392639057,-198.9082381,0.00027671,2]
[311791250,1705392639066,-198.9082381,0.00027671,2]
[311791252,1705392639075,-500.0,0.00027808,2]
[311791254,1705392639084,-500.0,0.00027945,2]
[311791256,1705392639092,-151.0,0.00027996,2]
[311791257,1705392639101,-151.0,0.00027996,2]
[311791259,1705392639110,-283.154918,0.00027996,2]
[311791261,1705392639119,-283.154918,0.00027996,2]
[311791263,1705392639127,-283.154918,0.00027996,2]
[311791265,1705392639136,-283.154918,0.00027996,2]
[311791267,1705392639146,-151.0,0.00027996,2]
[311791269,1705392639155,-152.042525,0.00027996,2]
[311791271,1705392639164,-1042.688088,0.00027996,2]
[311791273,1705392639173,-1042.688088,0.00027996,2]
[311791274,1705392639183,-1042.688088,0.00027996,2]
[311791275,1705392639193,-1042.688088,0.00027996,2]
[311791276,1705392639202,-1042.688088,0.00027996,2]
[311791277,1705392639211,-1042.688088,0.00027996,2]
[311791278,1705392639220,-1042.688088,0.00027996,2]
[311791279,1705392639230,-1042.688088,0.00027996,2]
[311791280,1705392639239,-1042.688088,0.00027996,2]
[311791282,1705392639248,-1042.688088,0.00027996,2]
[311791284,1705392639258,-5000.0,0.00027996,5]
[311791286,1705392639267,-5000.0,0.00027996,5]
[311791288,1705392639277,-5000.0,0.00027996,5]
[311791299,1705392639366,-5000.0,0.00027996,5]
[311791301,1705392639375,-5000.0,0.00027996,5]
[311791303,1705392639385,-35000.0,0.00027996,5]
[311791305,1705392639393,-5000.0,0.00027996,5]
[311791307,1705392639402,-5000.0,0.00027996,5]
[311791309,1705392639411,-50000.0,0.00027996,5]
[311791311,1705392639420,-88293.19287915,0.00027996,5]
[311791313,1705392639429,-17210.35054069,0.00027996,5]
[311791315,1705392639438,-4802.08351013,0.00027996,5]
[311791317,1705392639447,-500.0,0.00028082,2]
[311791319,1705392639456,-329.44588468,0.00028155,2]
[311791321,1705392639464,-500.0,0.00028219,2]
[311791323,1705392639473,-500.0,0.00028356,2]
[311791325,1705392639482,-500.0,0.00028493,2]
[311791327,1705392639491,-9110.22573903,0.000285,4]
[311791329,1705392639500,-275.13071022,0.000285,2]
[311791331,1705392639509,-1042.688088,0.000285,2]
[311791333,1705392639518,-1042.688088,0.000285,2]
[311791334,1705392639529,-150.0,0.00028519,2]
[311791336,1705392639538,-150.295,0.00028519,2]
[311791338,1705392639546,-150.0,0.00028519,2]
[311791340,1705392639555,-500.0,0.0002863,2]
[311791342,1705392639564,-155.0,0.00028767,2]
[311791344,1705392639574,-500.0,0.00028767,2]
[311791347,1705392639583,-500.0,0.00028904,2]
[311791349,1705392639592,-151.0,0.00028966,2]
[311791351,1705392639601,-2454.74382412,0.00029,2]
[311791353,1705392639610,-155.77486132,0.00029,2]
[311791355,1705392639620,-377.69077729,0.00029005,2]
[311791357,1705392639629,-620.00053771,0.00029033,2]
[311791359,1705392639638,-500.0,0.00029041,2]
[311791361,1705392639647,-342.48819433,0.00029178,2]
[311791363,1705392639656,-161.7286158,0.00029326,2]
[311791365,1705392639666,-151.0,0.00029474,2]
[311791367,1705392639675,-283.154918,0.0002971,2]
[311791369,1705392639684,-283.154918,0.0002971,2]
[311791370,1705392639693,-151.0,0.0002978,2]
[311791373,1705392639704,-329.44588468,0.000299,2]
[311791374,1705392639712,-151.0,0.00029938,2]
[311791377,1705392639722,-154.04375427,0.0002995,2]
[311791379,1705392639732,-154.019126,0.00029999,2]
[311791381,1705392639741,-283.154918,0.00029999,2]
[311791383,1705392639750,-283.154918,0.00029999,2]
[311791384,1705392639759,-1042.688088,0.00029999,2]
[311791386,1705392639768,-1042.688088,0.00029999,2]
[311791388,1705392639778,-1451.97,0.00029999,2]
[311791390,1705392639787,-1451.97,0.00029999,2]
[311791392,1705392639796,-1451.97,0.00029999,2]
[311791394,1705392639805,-1451.97,0.00029999,2]
[311791396,1705392639814,-1451.97,0.00029999,2]
[311791398,1705392639822,-1451.97,0.00029999,2]
[311791400,1705392639831,-1451.97,0.00029999,2]
[311791402,1705392639840,-1451.97,0.00029999,2]
[311791404,1705392639849,-1451.97,0.00029999,2]
[311791406,1705392639858,-500.0,0.00029999,2]
[311791408,1705392639868,-631.35216736,0.00029999,2]
[311791410,1705392639877,-500.0,0.00029999,2]
[311791412,1705392639886,-500.0,0.00029999,2]
[311791414,1705392639895,-521.28547598,0.00029999,2]
[311791416,1705392639904,-500.0,0.00029999,2]
[311791418,1705392639914,-500.0,0.00029999,2]
[311791420,1705392639922,-546.0129135,0.00029999,2]
[311791422,1705392639931,-500.0,0.00029999,2]
[311791424,1705392639941,-500.0,0.00029999,2]
[311791426,1705392639951,-546.0129135,0.00029999,2]
[311791428,1705392639960,-500.0,0.00029999,2]
[311791431,1705392639969,-446.95032237,0.00029999,2]
[311791433,1705392639978,-255.4797091,0.00029999,2]
[311791435,1705392639988,-500.0,0.00029999,2]
[311791436,1705392639997,-546.0129135,0.00029999,2]
[311791439,1705392640006,-500.0,0.00029999,2]
[311791441,1705392640015,-546.0129135,0.00029999,2]
[311791442,1705392640025,-500.0,0.00029999,2]
[311791444,1705392640036,-546.0129135,0.00029999,2]
[311791446,1705392640045,-500.0,0.00029999,2]
[311791448,1705392640054,-546.0129135,0.00029999,2]
[311791450,1705392640064,-415.90806164,0.00029999,2]
[311791452,1705392640074,-500.0,0.00029999,2]
[311791454,1705392640083,-546.0129135,0.00029999,2]
[311791457,1705392640094,-546.0129135,0.00029999,2]
[311791459,1705392640104,-546.0129135,0.00029999,2]
[311791461,1705392640113,-500.0,0.00029999,2]
[311791463,1705392640122,-546.0129135,0.00029999,2]
[311791466,1705392640131,-546.0129135,0.00029999,2]
[311791469,1705392640140,-500.0,0.00029999,2]
[311791471,1705392640150,-500.0,0.00029999,2]
[311791473,1705392640159,-500.0,0.00029999,2]
[311791475,1705392640167,-546.0129135,0.00029999,2]
[311791477,1705392640176,-546.0129135,0.00029999,2]
[311791478,1705392640185,-500.0,0.00029999,2]
[311791481,1705392640195,-636.69829622,0.00029999,2]
[311791482,1705392640204,-500.0,0.00029999,2]
[311791485,1705392640214,-500.0,0.00029999,2]
[311791487,1705392640222,-546.0129135,0.00029999,2]
[311791488,1705392640232,-546.01291349,0.00029999,2]
[311791491,1705392640242,-500.0,0.00029999,2]
[311791492,1705392640251,-391.43905664,0.00029999,2]
[311791494,1705392640260,-546.0129135,0.00029999,2]
[311791496,1705392640269,-500.0,0.00029999,2]
[311791498,1705392640281,-546.0129135,0.00029999,2]
[311791500,1705392640290,-546.0129135,0.00029999,2]
[311791502,1705392640299,-546.0129135,0.00029999,2]
[311791505,1705392640309,-546.0129135,0.00029999,2]
[311791507,1705392640319,-546.0129135,0.00029999,2]
[311791508,1705392640327,-546.0129135,0.00029999,2]
[311791511,1705392640337,-546.0129135,0.00029999,2]
[311791512,1705392640346,-546.0129135,0.00029999,2]
[311791514,1705392640355,-546.0129135,0.00029999,2]
[311791516,1705392640365,-546.0129135,0.00029999,2]
[311791519,1705392640374,-546.0129135,0.00029999,2]
[311791521,1705392640384,-546.0129135,0.00029999,2]
[311791523,1705392640393,-546.0129135,0.00029999,2]
[311791525,1705392640402,-546.0129135,0.00029999,2]
[311791526,1705392640410,-438.6008308,0.0003,5]
[311791528,1705392640419,-200.30831708,0.0003,4]
[311791530,1705392640429,-20774.94157507,0.0003,4]
[311791532,1705392640438,-155.77495357,0.0003,4]
[311791533,1705392640447,-157.58234581,0.0003,4]
[311791534,1705392640456,-465.24992729,0.0003,4]
[311791535,1705392640465,-3758.34471,0.0003,2]
[311791536,1705392640475,-687.578808,0.0003,4]
[311791537,1705392640484,-297.88447958,0.0003,4]
[311791538,1705392640492,-640.52310595,0.0003,4]
[311791539,1705392640502,-681.93949513,0.0003,3]
[311791540,1705392640511,-155.0,0.0003,2]
[311791541,1705392640520,-351.009366,0.0003,2]
[311791542,1705392640530,-4457.5026249,0.0003,4]
[311791543,1705392640539,-410.24944644,0.0003,2]
[311791544,1705392640548,-12267.76203625,0.0003,2]
[311791545,1705392640557,-248650.33170945,0.0003,2]
[311791546,1705392640566,-34095.98656636,0.0003,3]
[311791547,1705392640576,-283.154918,0.0003,2]
[311791548,1705392640585,-283.154918,0.0003,2]
[311791549,1705392640594,-283.154918,0.0003,2]
[311791550,1705392640604,-283.154918,0.0003,2]
[311791551,1705392640613,-283.154918,0.0003,2]
[311791552,1705392640622,-283.154918,0.0003,2]
[311791553,1705392640631,-283.154918,0.0003,2]
[311791554,1705392640640,-283.154918,0.0003,2]
[311791555,1705392640649,-863.59,0.0003,2]
[311791556,1705392640658,-15895.893829,0.0003,2]
[311791557,1705392640667,-270.0,0.0003,2]
[311791558,1705392640677,-1042.688088,0.0003,2]
[311791559,1705392640686,-1042.688088,0.0003,2]
[311791560,1705392640695,-504.499014,0.000301,14]
[311791561,1705392640704,-198.9082381,0.00030137,2]
[311791562,1705392640714,-155.0,0.00030137,2]
[311791563,1705392640723,-165.95053937,0.00030175,7]
[311791564,1705392640732,-391.0,0.00030365,15]
[311791565,1705392640742,-620.00002689,0.00030485,2]
[311791566,1705392640751,-170.82124155,0.00030505,7]
[311791567,1705392640760,-165.95053937,0.00030555,7]
[311791568,1705392640769,-409.0,0.000306,2]
[311791569,1705392640778,-2400.0,0.0003067,30]
[311791570,1705392640787,-2400.0,0.0003068,30]
[311791571,1705392640797,-2400.0,0.0003069,30]
[311791572,1705392640806,-154.04375427,0.00030699,7]
[311791573,1705392640816,-6000.0,0.000308,2]
[311791574,1705392640825,-283.154918,0.000308,2]
[311791575,1705392640834,-283.154918,0.000308,2]
[311791576,1705392640843,-50000.0,0.00030863,7]
[311791577,1705392640853,-283.154918,0.00030863,2]
[311791578,1705392640863,-283.154914,0.00030863,2]
[311791579,1705392640872,-154.04375427,0.00030892,7]
[311791580,1705392640882,-831.44420766,0.00030898,2]
[311791581,1705392640892,-372.83239839,0.00030898,2]
[311791582,1705392640902,-325.36058628,0.00030898,2]
[311791583,1705392640912,-507.08267911,0.00030898,2]
[311791584,1705392640922,-449.37235057,0.00030898,2]
[311791585,1705392640931,-6000.0,0.00030904,2]
[311791586,1705392640940,-151.0,0.00030909,2]
[311791587,1705392640949,-1375.94440899,0.00030915,2]
[311791588,1705392640959,-2542.48193515,0.00030915,2]
[311791589,1705392640968,-302.12409676,0.00030915,2]
[311791590,1705392640977,-221.88722902,0.00030915,2]
[311791591,1705392640987,-434.06616871,0.00030915,2]
[311791592,1705392640996,-594.49117528,0.0003097,2]
[311791593,1705392641006,-1451.97,0.00030986,2]
[311791594,1705392641015,-609.27826206,0.00030989,4]
[311791595,1705392641024,-500.0,0.00030989,4]
[311791596,1705392641035,-487.21595598,0.00030989,4]
[311791597,1705392641045,-500.0,0.00030989,4]
[311791598,1705392641054,-526.90794115,0.00030989,4]
[311791599,1705392641063,-500.0,0.00030989,4]
[311791600,1705392641073,-449.0134094,0.00030989,4]
[311791601,1705392641083,-500.0,0.00030989,4]
[311791602,1705392641091,-500.0,0.00030989,4]
[311791604,1705392641101,-500.0,0.00030989,4]
[311791605,1705392641109,-345.11460587,0.00030989,4]
[311791606,1705392641118,-500.0,0.00030989,4]
[311791607,1705392641126,-500.0,0.00030989,4]
[311791608,1705392641135,-500.0,0.00030989,4]
[311791609,1705392641144,-500.0,0.00030989,4]
[311791610,1705392641154,-500.0,0.00030989,4]
[311791611,1705392641163,-51357.33050754,0.00031,4]
[311791612,1705392641172,-154.0,0.00031,4]
[311791613,1705392641182,-155.0,0.00031,2]
[311791614,1705392641192,-51190.67509022,0.00031,2]
[311791615,1705392641201,-3741.40590645,0.00031,2]
[311791616,1705392641212,-195.57320503,0.00031,4]
[311791617,1705392641222,-404.80569285,0.00031,3]
[311791618,1705392641232,-1150.65166067,0.00031,2]
[311791619,1705392641241,-161.7286158,0.00031081,7]
[311791620,1705392641252,-300.0,0.00031099,2]
[311791621,1705392641261,-162.69671502,0.00031135,2]
[311791622,1705392641272,-500.0,0.00031232,2]
[311791623,1705392641284,-161.7286158,0.00031284,7]
[311791624,1705392641293,-2500.0,0.000315,10]
[311791625,1705392641392,-5000.0,0.000315,10]
[311791626,1705392641402,-277.41742058,0.00031506,2]
[311791627,1705392641417,-155.0,0.00031507,2]
[311791628,1705392641426,-150.0,0.00031519,2]
[311791629,1705392641436,-150.0,0.00031519,2]
[311791630,1705392641445,-151.0,0.00031881,2]
[311791631,1705392641455,-99283.15434705,0.00032,15]
[311791632,1705392641530,-3580.72887747,0.00032,15]
[311791804,1705393833862,-266.58072462,0.00023499,2]
[311791805,1705393833871,-155.0,0.000235,2]
[311791806,1705393833881,-167.280854,0.00025607,2]
[311791807,1705393833890,-700.31088033,0.00026185,2]
[311791938,1705393838337,-4016.51550178,0.00026185,2]
[311791940,1705393838347,-492.7898727,0.00026186,2]
[311791942,1705393838356,-174.428816,0.00026339,2]
[311791944,1705393838365,-289.85545354,0.00027,2]
[311791945,1705393838374,-461.1686624,0.00027,2]
[311791947,1705393838383,-1045.05948708,0.00027918,2]
[311791948,1705393838391,-121.92773801,0.00027946,2]
[311791949,1705393838403,-399.16603921,0.00027946,2]
[311791950,1705393838412,-599.51437455,0.00027948,2]
[311791953,1705393838452,-2303.7173266,0.00027948,2]
[311791954,1705393838461,-1277.01155087,0.00027948,5]
[311791981,1705393841281,-251.39133245,0.00027948,5]
[311792044,1705393843435,-22926.94260555,0.00027948,5]
[311792080,1705393846436,-268.66394268,0.00027948,5]
[311792170,1705395032691,-155.0,0.000235,2]
[311792171,1705395032700,-167.280854,0.00023729,2]
[311792173,1705395032709,-174.6166086,0.00023947,2]
[311792175,1705395032719,-521.09377722,0.00024779,2]
[311792176,1705395032728,-13706.10600457,0.0002478,2]
[311792178,1705395032737,-24900.0,0.00024781,2]
[311792180,1705395032746,-1045.05948708,0.00025,2]
[311792182,1705395032755,-687.93916872,0.00025,2]
[311792183,1705395032763,-4716.82638211,0.00025,2]
[311792184,1705395032773,-804.86695674,0.00025151,5]
[311792186,1705395032782,-656.82045827,0.00025848,2]
[311792188,1705395032795,-197.66753084,0.00026065,2]
[311792189,1705395032804,-3785.88,0.00026094,3]
[311792190,1705395032813,-562.81123977,0.00026103,2]
[311792192,1705395032822,-273.18721547,0.00026103,2]
[311792194,1705395032832,-1031.29658725,0.00026103,2]
[311792196,1705395032841,-615.97967559,0.00026103,2]
[311792197,1705395032851,-177.82900735,0.00026103,2]
[311792198,1705395032861,-677.43954104,0.00026103,2]
[311792199,1705395032870,-155.51533463,0.00026103,2]
[311792200,1705395032879,-875.12776531,0.00026103,2]
[311792201,1705395032888,-2303.7173266,0.00026103,2]
[311792202,1705395032897,-3702.62625234,0.00026104,2]
[311792203,1705395032907,-80611.98167407,0.00026104,2]
[311792234,1705395038584,-8771.08369803,0.00026104,2]
[311792236,1705395038594,-50000.0,0.00026165,2]
[311792238,1705395038603,-197.6675308,0.00026511,2]
[311792240,1705395038612,-497.68470195,0.00026549,5]
[311792242,1705395038622,-9110.22573903,0.00026551,4]
[311792244,1705395038631,-620.21505784,0.00026729,2]
[311792246,1705395038640,-197.6675308,0.00026957,2]
[311792248,1705395038650,-289.85545354,0.00027,2]
[311792250,1705395038659,-461.1686624,0.00027,2]
[311792252,1705395038668,-198.9082381,0.00027178,2]
[311792254,1705395038678,-200.0,0.00027258,15]
[311792256,1705395038687,-155.0,0.00027397,2]
[311792258,1705395038696,-150.68547709,0.00027397,7]
[311792260,1705395038706,-197.6675308,0.00027402,2]
[311792262,1705395038715,-4061.88573165,0.00027667,2]
[311792264,1705395038724,-197.6675308,0.00027848,2]
[311792266,1705395038734,-451.67929651,0.00027944,2]
[311792268,1705395038745,-155.05689651,0.00027944,2]
[311792270,1705395038754,-266.94660645,0.00027946,2]
[311792272,1705395038764,-2705.10797595,0.00027946,5]
[311792274,1705395038774,-36000.0,0.00027946,2]
[311792276,1705395038783,-2035.80105868,0.00027946,2]
[311792278,1705395038793,-19173.10109535,0.00027947,2]
[311792280,1705395038803,-500.0,0.00027947,2]
[311792282,1705395038812,-500.0,0.00027947,2]
[311792284,1705395038821,-500.0,0.00027947,2]
[311792286,1705395038830,-500.0,0.00027947,2]
[311792288,1705395038839,-500.0,0.00027947,2]
[311792290,1705395038848,-500.0,0.00027947,2]
[311792292,1705395038859,-500.0,0.00027947,2]
[311792294,1705395038868,-500.0,0.00027947,2]
[311792295,1705395038877,-500.0,0.00027947,2]
[311792297,1705395038887,-500.0,0.00027947,2]
[311792299,1705395038896,-500.0,0.00027947,2]
[311792301,1705395038905,-500.0,0.00027947,2]
[311792303,1705395038914,-500.0,0.00027947,2]
[311792305,1705395038924,-168.37082932,0.00027947,2]
[311792307,1705395038933,-500.0,0.00027947,2]
[311792309,1705395038942,-500.0,0.00027947,2]
[311792311,1705395038952,-500.0,0.00027947,2]
[311792313,1705395038962,-500.0,0.00027947,2]
[311792315,1705395038972,-500.0,0.00027947,2]
[311792317,1705395038982,-500.0,0.00027947,2]
[311792319,1705395038992,-500.0,0.00027947,2]
[311792321,1705395039002,-500.0,0.00027947,2]
[311792323,1705395039011,-500.0,0.00027947,2]
[311792325,1705395039021,-500.0,0.00027947,2]
[311792327,1705395039030,-283.154918,0.00027948,2]
[311792329,1705395039040,-283.154918,0.00027948,2]
[311792331,1705395039051,-997.786189,0.00027948,2]
[311792333,1705395039061,-997.786189,0.00027948,2]
[311792335,1705395039072,-9355.31989456,0.00027948,5]
[311792338,1705395039083,-5000.0,0.00027948,5]
[311792339,1705395039092,-8750.0,0.00027948,5]
[311792341,1705395039101,-1926.51175077,0.00027948,5]
[311792343,1705395039110,-261.2512567,0.00027948,2]
[311792345,1705395039119,-3317.6555251,0.00027948,2]
[311792347,1705395039128,-277957.72819886,0.00027948,7]
[311792349,1705395039137,-2657.48511022,0.00027948,5]
[311792351,1705395039146,-50000.0,0.00027948,5]
[311792353,1705395039155,-70382.78581855,0.00027948,5]
[311792355,1705395039164,-5000.0,0.00027948,5]
[311792357,1705395039173,-156.52857959,0.00027948,2]
[311792359,1705395039182,-1489.4134536,0.00027948,5]
[311792361,1705395039190,-2611.97067268,0.00027948,5]
[311792363,1705395039200,-620.01075289,0.00028065,2]
[311792365,1705395039210,-500.0,0.00028084,2]
[311792367,1705395039219,-500.0,0.00028221,2]
[311792369,1705395039229,-500.0,0.00028358,2]
[311792371,1705395039238,-198.9082381,0.00028493,2]
[311792373,1705395039246,-500.0,0.00028495,2]
[311792375,1705395039256,-274.42712104,0.000285,2]
[311792377,1705395039265,-500.0,0.00028632,2]
[311792379,1705395039274,-155.0,0.00028767,2]
[311792381,1705395039286,-500.0,0.00028769,2]
[311792383,1705395039297,-500.0,0.00028906,2]